Unique ID,Date pledged,Disbursement confirmed,Funding source,Type of source,Funder location,Funding recipient,Type of recipient,Recipient location,Funding purpose,Principles of equitable access included?,Funding amount USD,Comment,Loans & Guarantees
1,05/02/2020,29/04/2020,Bill & Melinda Gates Foundation,Private,North America,WHO,Multilateral,Global,WHO Strategic preparedness and response plan,Yes,"14,406,565",,No
3,07/02/2020,,Ireland,Public,Europe,WHO,Multilateral,Global,WHO Strategic preparedness and response plan,Yes,"1,100,000",,No
5,14/02/2020,23/10/2020,Norway,Public,Europe,WHO,Multilateral,Global,WHO Strategic preparedness and response plan,Yes,"3,621,136",,No
6,17/02/2020,25/09/2020,Norway,Public,Europe,CEPI,Multilateral,Global,ACT-Accelerator Vaccines,Yes,"22,276,040",,No
7,17/02/2020,19/08/2020,Australia,Public,Oceania,WHO,Multilateral,Global,WHO Strategic preparedness and response plan,Yes,"2,166,880",,No
8,17/02/2020,21/09/2020,Italy,Public,Europe,WHO,Multilateral,Global,WHO Strategic preparedness and response plan,Yes,"8,293,025",,No
9,17/02/2020,21/09/2020,New Zealand,Public,Oceania,WHO,Multilateral,Global,WHO Strategic preparedness and response plan,Yes,"3,263,610",,No
10,05/02/2020,03/07/2020,Vital Strategies/Resolve to Save Lives,Private,North America,WHO,Multilateral,Global,WHO Strategic preparedness and response plan,Yes,"2,610,803",,No
12,20/02/2020,29/04/2020,Slovakia,Public,Europe,WHO,Multilateral,Global,WHO Strategic preparedness and response plan,Yes,"220,507",,No
15,27/02/2020,29/04/2020,Czech Republic,Public,Europe,WHO,Multilateral,Global,WHO Strategic preparedness and response plan,Yes,"258,176",,No
16,27/02/2020,03/07/2020,France,Public,Europe,WHO,Multilateral,Global,WHO Strategic preparedness and response plan,Yes,"5,878,727",,No
17,28/02/2020,29/04/2020,Luxembourg,Public,Europe,WHO,Multilateral,Global,WHO Strategic preparedness and response plan,Yes,"1,233,509",,No
18,28/02/2020,14/09/2020,Germany,Public,Europe,WHO,Multilateral,Global,WHO Strategic preparedness and response plan,Yes,"425,206,539",,No
20,03/03/2020,29/04/2020,United States,Public,North America,WHO,Multilateral,Global,WHO Strategic preparedness and response plan,Yes,"33,219,300",,No
21,06/03/2020,22/06/2020,Azerbaijan,Public,Central and south Asia,WHO,Multilateral,Global,WHO Strategic preparedness and response plan,Yes,"10,000,000",,No
22,06/03/2020,12/05/2021,United Kingdom,Public,Europe,CEPI,Multilateral,Global,ACT-Accelerator Vaccines,Yes,"274,812,300",,No
23,06/03/2020,21/09/2020,United Kingdom,Public,Europe,WHO,Multilateral,Global,WHO Strategic preparedness and response plan,Yes,"122,022,599",,No
24,07/03/2020,24/05/2020,China,Public,East and southeast Asia,WHO,Multilateral,Global,WHO Strategic preparedness and response plan,Yes,"25,100,000",,No
25,08/03/2020,29/04/2020,Republic of Korea,Public,East and southeast Asia,WHO,Multilateral,Global,WHO Strategic preparedness and response plan,Yes,"6,239,380",,No
26,09/03/2020,11/09/2020,Saudi Arabia,Public,Middle East & North Africa,WHO,Multilateral,Global,WHO Strategic preparedness and response plan,Yes,"23,000,000",,No
27,09/03/2020,31/03/2020,Wellcome Trust,Private,Europe,Therapeutics Accelerator,Multilateral,Global,ACT-Accelerator Therapeutics,Yes,"50,000,000",,No
29,11/03/2020,12/05/2021,Germany,Public,Europe,CEPI,Multilateral,Global,ACT-Accelerator Vaccines,Yes,"257,658,400",,No
30,11/03/2020,29/04/2020,Japan,Public,East and southeast Asia,WHO,Multilateral,Global,WHO Strategic preparedness and response plan,Yes,"50,646,751",,No
31,11/03/2020,03/07/2020,Finland,Public,Europe,WHO,Multilateral,Global,WHO Strategic preparedness and response plan,Yes,"1,103,753",,No
32,12/03/2020,19/08/2020,Canada,Public,North America,WHO,Multilateral,Global,WHO Strategic preparedness and response plan,Yes,"14,341,864",,No
34,12/03/2020,03/07/2020,Slovenia,Public,Europe,WHO,Multilateral,Global,WHO Strategic preparedness and response plan,Yes,"67,873",,No
36,17/03/2020,29/04/2020,Kuwait,Public,Middle East & North Africa,WHO,Multilateral,Global,WHO Strategic preparedness and response plan,Yes,"60,000,000",,No
37,20/03/2020,,King Baudouin Foundation,Private,North America,WHO Regional office for Africa,Multilateral,Middle East & North Africa,WHO Strategic preparedness and response plan,Yes,"250,000",,No
38,23/03/2020,,FIFA,Private,Europe,WHO,Multilateral,Global,WHO Strategic preparedness and response plan,Yes,"10,000,000",,No
39,23/03/2020,,Singapore,Public,Central and south Asia,WHO,Multilateral,Global,WHO Strategic preparedness and response plan,Yes,"500,000",,No
42,26/03/2020,,United Kingdom,Public,Europe,Therapeutics Accelerator,Multilateral,Global,ACT-Accelerator Therapeutics,Yes,"50,000,000",,No
43,27/03/2020,25/09/2020,Norway,Public,Europe,CEPI,Multilateral,Global,ACT-Accelerator Vaccines,Yes,"188,780,000",,No
45,31/03/2020,03/07/2020,COVID-19 Solidarity Response Fund,Private,North America,WHO,Multilateral,Global,WHO Strategic preparedness and response plan,Yes,"139,728,500",,No
46,02/04/2020,,Qatar,Public,Middle East & North Africa,WHO,Multilateral,Global,WHO Strategic preparedness and response plan,Yes,"5,000,000",,No
48,02/04/2020,24/07/2020,UNOCHA,Multilateral,North America,WHO,Multilateral,Global,WHO Strategic preparedness and response plan,Yes,"21,775,366",,No
49,02/04/2020,29/04/2020,Holy See,Public,Europe,WHO,Multilateral,Global,WHO Strategic preparedness and response plan,Yes,"111,720",,No
54,06/04/2020,08/10/2020,Canada,Public,North America,CEPI,Multilateral,Global,ACT-Accelerator Vaccines,Yes,"28,156,100",,No
58,13/04/2020,01/05/2020,COVID-19 Solidarity Response Fund,Private,North America,CEPI,Multilateral,Global,ACT-Accelerator Vaccines,Yes,"10,000,000",,No
59,15/04/2020,,Citadel,Private,North America,Not specified,Not specified,Not specified,Unallocated,Yes,"2,000,000",,No
60,15/04/2020,12/05/2021,Switzerland,Public,Europe,CEPI,Multilateral,Global,ACT-Accelerator Vaccines,Yes,"10,385,800",,No
61,16/04/2020,12/05/2021,Netherlands,Public,Europe,CEPI,Multilateral,Global,ACT-Accelerator Vaccines,Yes,"54,772,500",,No
62,16/04/2020,29/04/2020,Ireland,Public,Europe,WHO,Multilateral,Global,WHO Strategic preparedness and response plan,Yes,"9,227,995",,No
63,16/04/2020,,Saudi Arabia,Public,Middle East & North Africa,CEPI,Multilateral,Global,ACT-Accelerator Vaccines,Yes,"150,000,000",,No
65,16/04/2020,29/04/2020,Denmark,Public,Europe,WHO,Multilateral,Global,WHO Strategic preparedness and response plan,Yes,"17,125,358",,No
66,02/04/2020,,Norway,Public,Europe,WHO,Multilateral,Global,R&D,Yes,"9,510,000",,No
67,09/03/2020,19/08/2020,Sweden,Public,Europe,WHO,Multilateral,Global,WHO Strategic preparedness and response plan,Yes,"3,877,323",,No
68,03/04/2020,08/04/2020,UN CERF,Multilateral,North America,UNICEF,Multilateral,Global,Surveillance and control,Yes,"10,950,000",,No
73,11/03/2020,19/08/2020,UN CERF,Multilateral,North America,WHO,Multilateral,Global,WHO Strategic preparedness and response plan,Yes,"21,299,918",,No
75,27/04/2020,03/07/2020,Portugal,Public,Europe,WHO,Multilateral,Global,WHO Strategic preparedness and response plan,Yes,"568,828",,No
76,24/04/2020,,Viet Nam,Public,East and southeast Asia,WHO,Multilateral,Global,WHO Strategic preparedness and response plan,Yes,"50,000",,No
77,16/03/2020,,Afghanistan Humanitarian Fund,Multilateral,Central and south Asia,WHO,Multilateral,Global,WHO Strategic preparedness and response plan,Yes,"1,500,000",,No
79,27/04/2020,,Alwaleed Philanthropies,Private,Middle East & North Africa,WHO,Multilateral,Global,WHO Strategic preparedness and response plan,Yes,"5,000,000",,No
82,15/04/2020,,Bill & Melinda Gates Foundation,Private,North America,Multiple recipients,Other,Global,R&D,Yes,"150,000,000",,No
83,09/03/2020,31/03/2020,Bill & Melinda Gates Foundation,Private,North America,Therapeutics Accelerator,Multilateral,Global,ACT-Accelerator Therapeutics,Yes,"50,000,000",,No
84,09/03/2020,31/03/2020,Mastercard,Private,North America,Therapeutics Accelerator,Multilateral,Global,ACT-Accelerator Therapeutics,Yes,"25,000,000",,No
85,30/03/2020,29/04/2020,Austria,Public,Europe,WHO,Multilateral,Global,WHO Strategic preparedness and response plan,Yes,"3,086,123",,No
86,08/04/2020,23/10/2020,European Commission,Multilateral,Europe,WHO,Multilateral,Global,WHO Strategic preparedness and response plan,Yes,"113,908,934",,No
87,,29/04/2020,King Baudouin Foundation,Private,Europe,WHO,Multilateral,Global,WHO Strategic preparedness and response plan,Yes,"3,250,000",,No
88,29/04/2020,,Avast Foundation,Private,Europe,Not specified,Not specified,Not specified,Unallocated,Yes,"8,000,000",,No
92,10/03/2020,,Japan,Public,East and southeast Asia,International Committee of the Red Cross,Multilateral,Middle East & North Africa,Emergency response,Yes,"24,654,545",,No
93,13/02/2020,30/04/2020,Wellcome Trust,Private,Europe,Multiple recipients,Other,Global,R&D,Yes,"12,532,550",,No
95,04/05/2020,02/02/2021,European Commission,Multilateral,Europe,Multiple recipients (Horizon 2020),Other,Europe,R&D,Yes,"734,444,620",,No
96,04/05/2020,,France,Public,Europe,Not specified,Not specified,Not specified,Unallocated,Yes,"56,000,000",,No
99,04/05/2020,,Japan,Public,East and southeast Asia,Not specified,Not specified,Not specified,Unallocated,Not known,"533,735,719",,No
100,04/05/2020,,Norway,Public,Europe,Not specified,Not specified,Not specified,Unallocated,Not known,"201,615,514",,No
104,04/05/2020,,Italy,Public,Europe,Not specified,Not specified,Not specified,Unallocated,Not known,"56,345,120",,No
106,04/05/2020,17/09/2021,Spain,Public,Europe,CEPI,Multilateral,Global,ACT-Accelerator Vaccines,Yes,"82,297,500",,No
108,04/05/2020,,Saudi Arabia,Public,Middle East & North Africa,Not specified,Not specified,Not specified,R&D,Not known,"25,978,478",,No
111,04/05/2020,17/12/2020,Switzerland,Public,Europe,Therapeutics Accelerator,Multilateral,Global,ACT-Accelerator Therapeutics,Yes,"21,400,000",,No
112,04/05/2020,,Israel,Public,Middle East & North Africa,Not specified,Not specified,Not specified,Unallocated,Not known,"7,592,015",,No
113,04/05/2020,,Netherlands,Public,Europe,Not specified,Not specified,Not specified,Unallocated,Yes,"19,600,000",,No
114,04/05/2020,,Luxembourg,Public,Europe,Not specified,Not specified,Not specified,Unallocated,Not known,"18,599,360",,No
117,04/05/2020,,Portugal,Public,Europe,Not specified,Not specified,Not specified,R&D,Not known,"10,939,000",,No
119,04/05/2020,,Croatia,Public,Europe,Not specified,Not specified,Not specified,Unallocated,Not known,"712,589",,No
121,04/05/2020,14/07/2020,Bulgaria,Public,Europe,WHO,Multilateral,Global,WHO Strategic preparedness and response plan,Yes,"111,982",,No
123,04/05/2020,25/11/2020,Serbia,Public,Europe,CEPI,Multilateral,Global,ACT-Accelerator Vaccines,Yes,"1,207,030",,No
124,04/05/2020,,Czech Republic,Public,Europe,Not specified,Not specified,Not specified,Unallocated,Not known,"820,425",,No
125,04/05/2020,,Slovakia,Public,Europe,Not specified,Not specified,Not specified,Unallocated,Not known,"820,425",,No
126,04/05/2020,12/05/2021,Hungary,Public,Europe,CEPI,Multilateral,Europe,ACT-Accelerator Vaccines,Yes,"841,148",,No
127,04/05/2020,,Poland,Public,Europe,Not specified,Not specified,Not specified,Unallocated,Not known,"545,834",,No
133,04/05/2020,12/05/2021,Greece,Public,Europe,GAVI,Multilateral,Global,ACT-Accelerator Vaccines,Yes,"2,000,000",,No
134,04/05/2020,12/05/2021,Austria,Public,Europe,CEPI,Multilateral,Global,ACT-Accelerator Vaccines,Yes,"2,247,280",,No
135,04/05/2020,,Malta,Public,Europe,Not specified,Not specified,Not specified,Unallocated,Not known,"437,560",,No
136,04/05/2020,,Belgium,Public,Europe,Not specified,Not specified,Not specified,Unallocated,Not known,"24,064,900",,No
137,04/05/2020,,Latvia,Public,Europe,WHO,Multilateral,Global,WHO Strategic preparedness and response plan,Yes,"108,577",,No
139,04/05/2020,,Republic of Korea,Public,East and southeast Asia,Not specified,Not specified,Not specified,R&D,Yes,"17,209,192",,No
141,04/05/2020,12/05/2021,Mexico,Public,North America,CEPI,Multilateral,Global,ACT-Accelerator Vaccines,Yes,"900,000",,No
143,04/05/2020,,Kuwait,Public,Middle East & North Africa,WHO,Multilateral,Global,WHO Strategic preparedness and response plan,Yes,"40,000,000",,No
146,04/05/2020,,Romania,Public,Europe,Not specified,Not specified,Not specified,Unallocated,Not known,"218,780",,No
150,04/05/2020,,European Investment Bank,Multilateral,Europe,Not specified,Not specified,Not specified,Unallocated,Yes,"91,700,122",,No
159,04/05/2020,28/02/2021,Wellcome Trust,Private,Europe,Multiple recipients,Public,Global,R&D,Yes,"13,561,900",,No
162,28/05/2020,,Lithuania,Public,Europe,Not specified,Not specified,Not specified,Unallocated,Not known,"110,559",,No
163,04/05/2020,21/07/2020,Cyprus,Public,Europe,WHO,Multilateral,Global,WHO Strategic preparedness and response plan,Yes,"110,376",,No
164,04/05/2020,17/09/2021,Italy,Public,Europe,CEPI,Multilateral,Global,ACT-Accelerator Vaccines,Yes,"10,973,000",,No
166,04/05/2020,,Luxembourg,Public,Europe,UN CERF,Multilateral,Global,Emergency response,Yes,"3,829,280",,No
167,04/05/2020,,Luxembourg,Public,Europe,International Committee of the Red Cross,Multilateral,Global,Emergency response,Yes,"2,188,160",,No
168,04/05/2020,12/05/2021,Luxembourg,Public,Europe,CEPI,Multilateral,Global,ACT-Accelerator Vaccines,Yes,"867,440",,No
169,04/05/2020,,Luxembourg,Public,Europe,UN CERF,Multilateral,Global,Emergency response,Yes,"5,470,400",,No
171,04/05/2020,,Sweden,Public,Europe,UN CERF,Multilateral,Global,Emergency response,Yes,"5,032,768",,No
172,04/05/2020,28/05/2020,Serbia,Public,Europe,WHO,Multilateral,Global,WHO Strategic preparedness and response plan,Yes,"1,103,753",,No
174,04/05/2020,,Switzerland,Public,Europe,WHO,Multilateral,Global,WHO Strategic preparedness and response plan,Yes,"10,940,800",,No
175,04/05/2020,,Finland,Public,Europe,International Federation of Red Cross and Red Crescent Societies,Multilateral,Global,Emergency response,Yes,"3,938,688",,No
176,04/05/2020,12/05/2021,Finland,Public,Europe,CEPI,Multilateral,Global,ACT-Accelerator Vaccines,Yes,"4,522,960",,No
178,04/05/2020,,Finland,Public,Europe,"UNHCR, the UN Refugee Agency",Multilateral,Global,Emergency response,Yes,"10,940,800",,No
183,04/05/2020,12/05/2021,Belgium,Public,Europe,CEPI,Multilateral,Global,ACT-Accelerator Vaccines,Yes,"5,447,950",,No
184,,03/07/2020,GAVI,Multilateral,Global,WHO,Multilateral,Global,WHO Strategic preparedness and response plan,Yes,"6,948,136",,No
185,,29/04/2020,Novartis International AG,Private,Europe,WHO,Multilateral,Global,WHO Strategic preparedness and response plan,Yes,"499,690",,No
186,,24/07/2020,OPEC Fund for International Development,Private,Europe,WHO,Multilateral,Global,WHO Strategic preparedness and response plan,Yes,"1,500,000",,No
187,,23/10/2020,UNDP,Multilateral,North America,WHO,Multilateral,Global,WHO Strategic preparedness and response plan,Yes,"12,155,665",,No
188,,19/08/2020,UNDP Multi-Partner Trust Fund (MPTF),Multilateral,North America,WHO,Multilateral,Global,WHO Strategic preparedness and response plan,Yes,"11,413,756",,No
189,,19/08/2020,Netherlands,Public,Europe,WHO,Multilateral,Global,WHO Strategic preparedness and response plan,Yes,"8,483,402",,No
190,,29/04/2020,Canada,Public,North America,WHO,Multilateral,Global,WHO Strategic preparedness and response plan,Yes,"729,903",,No
191,,29/04/2020,Denmark,Public,Europe,WHO,Multilateral,Global,WHO Strategic preparedness and response plan,Yes,"1,070,000",,No
192,,29/04/2020,Germany,Public,Europe,WHO,Multilateral,Global,WHO Strategic preparedness and response plan,Yes,"3,307,607",,No
193,,29/04/2020,Kuwait,Public,Middle East & North Africa,WHO,Multilateral,Global,WHO Strategic preparedness and response plan,Yes,"500,000",,No
194,,29/04/2020,Austria,Public,Europe,WHO,Multilateral,Global,WHO Strategic preparedness and response plan,Yes,"330,761",,No
195,04/05/2020,12/05/2021,Japan,Public,East and southeast Asia,CEPI,Multilateral,Global,ACT-Accelerator Vaccines,Yes,"96,272,727",,No
204,03/04/2020,,Russian Federation,Public,Europe,WHO,Multilateral,Global,WHO Strategic preparedness and response plan,Yes,"1,000,000",,No
206,29/04/2020,12/05/2021,TikTok,Private,East and southeast Asia,GAVI,Multilateral,Global,ACT-Accelerator Vaccines,Yes,"5,000,000",,No
208,26/05/2020,17/09/2021,New Zealand,Public,Oceania,CEPI,Multilateral,Global,ACT-Accelerator Vaccines,Yes,"9,081,900",,No
209,26/05/2020,12/05/2021,New Zealand,Public,Oceania,GAVI,Multilateral,Global,ACT-Accelerator Vaccines,Yes,"4,918,200",,No
212,28/05/2020,,Turkey,Public,Europe,Not specified,Not specified,Not specified,Unallocated,Not known,"30,566,707",,No
214,28/05/2020,,Bhutan,Public,Central and south Asia,WHO,Multilateral,Global,WHO Strategic preparedness and response plan,Yes,"5,081",,No
215,28/05/2020,,Estonia,Public,Europe,Not specified,Not specified,Not specified,Unallocated,Not known,"9,470,221",,No
216,28/05/2020,,Liechtenstein,Public,Europe,Not specified,Not specified,Not specified,Unallocated,Not known,"209,794",,No
217,28/05/2020,,Monaco,Public,Europe,Not specified,Not specified,Not specified,Unallocated,Not known,"1,113,190",,No
221,04/05/2020,12/05/2021,Italy,Public,Europe,Global Fund,Multilateral,Global,ACT-Accelerator Health systems,Yes,"560,000",We would like to bring attention on funds contributed to the Global Fund. These are pooled under the Global Fund COVID-19 Response Mechanism and then redistributed to the work of the ACT Accelerator pillars based on country demand.,No
222,04/05/2020,12/05/2021,Australia,Public,Oceania,CEPI,Multilateral,Global,ACT-Accelerator Vaccines,Yes,"4,809,150",,No
223,04/05/2020,,Australia,Public,Oceania,Not specified,Not specified,Not specified,Unallocated,Not known,"23,184,912",,No
224,28/05/2020,,Bhutan,Public,Central and south Asia,GAVI,Multilateral,Global,ACT-Accelerator Vaccines,Yes,"5,000",,No
229,12/11/2020,,France,Public,Europe,GAVI,Multilateral,Global,ACT-Accelerator Vaccines,Yes,"122,000,000",,No
230,04/05/2020,,Germany,Public,Europe,FIND,Multilateral,Europe,ACT-Accelerator Diagnostics,Yes,"11,500,000",,No
231,04/05/2020,12/05/2021,Australia,Public,Oceania,FIND,Multilateral,Europe,ACT-Accelerator Diagnostics,Yes,"5,400,000",,No
232,04/05/2020,12/05/2021,Saudi Arabia,Public,Middle East & North Africa,FIND,Multilateral,Europe,ACT-Accelerator Diagnostics,Yes,"10,000,000",,No
233,04/05/2020,12/05/2021,Switzerland,Public,Europe,FIND,Multilateral,Europe,ACT-Accelerator Diagnostics,Yes,"11,000,000",,No
234,26/03/2020,12/05/2021,United Kingdom,Public,Europe,FIND,Multilateral,Europe,ACT-Accelerator Diagnostics,Yes,"28,800,000",,No
236,04/05/2020,,Denmark,Public,Europe,Not specified,Not specified,Not specified,Unallocated,Not known,"11,413,100",,No
238,04/05/2020,,Finland,Public,Europe,Not specified,Not specified,Not specified,Unallocated,Not known,"6,550,009",,No
240,04/06/2020,12/05/2021,Italy,Public,Europe,GAVI,Multilateral,Global,ACT-Accelerator Vaccines,Yes,"79,400,000",,No
241,04/05/2020,,Israel,Public,Middle East & North Africa,Not specified,Not specified,Not specified,Unallocated,Not known,"14,445,782",,No
242,04/06/2020,12/05/2021,Bill & Melinda Gates Foundation,Private,North America,GAVI,Multilateral,Global,ACT-Accelerator Vaccines,Yes,"106,300,000",Gavi figures include the pro-rata share of unallocated AMC-PCV funds,No
243,04/05/2020,,Italy,Public,Europe,Not specified,Not specified,Not specified,Unallocated,Not known,"109,166,812",,Yes
244,04/05/2020,,Morocco,Public,Middle East & North Africa,Not specified,Not specified,Not specified,Unallocated,Not known,"365,260",,No
247,04/05/2020,,South Africa,Public,Sub-Saharan Africa,Not specified,Not specified,Not specified,Unallocated,Yes,"271,204",,No
248,09/06/2020,12/05/2021,Greece,Public,Europe,CEPI,Multilateral,Global,ACT-Accelerator Vaccines,Yes,"1,826,670",,No
250,04/05/2020,03/07/2020,Estonia,Public,Europe,WHO,Multilateral,Global,WHO Strategic preparedness and response plan,Yes,"108,578",,No
251,04/05/2020,17/09/2021,European Commission,Multilateral,Europe,CEPI,Multilateral,Global,ACT-Accelerator Vaccines,Yes,"109,730,000",,No
252,04/05/2020,12/05/2021,Saudi Arabia,Public,Middle East & North Africa,GAVI,Multilateral,Global,ACT-Accelerator Vaccines,Yes,"150,000,000",,No
253,04/05/2020,,Ireland,Public,Europe,Not specified,Not specified,Not specified,Unallocated,Yes,"3,275,004",,No
254,04/05/2020,,Israel,Public,Middle East & North Africa,Not specified,Not specified,Not specified,R&D,Not known,"25,499,599",,No
255,04/05/2020,,Israel,Public,Middle East & North Africa,Not specified,Not specified,Not specified,R&D,Not known,"12,320,814",,No
258,28/05/2020,03/07/2020,Liechtenstein,Public,Europe,WHO,Multilateral,Global,WHO Strategic preparedness and response plan,Yes,"320,513",,No
259,28/05/2020,12/05/2021,Switzerland,Public,Europe,GAVI,Multilateral,Global,ACT-Accelerator Vaccines,Yes,"22,477,138",,No
260,28/05/2020,,Luxembourg,Public,Europe,Not specified,Not specified,Not specified,Unallocated,Yes,"906,591",,No
262,28/05/2020,12/05/2021,Lithuania,Public,Europe,CEPI,Multilateral,Global,ACT-Accelerator Vaccines,Yes,"109,730",,No
263,04/05/2020,,Morocco,Public,Middle East & North Africa,Not specified,Not specified,Not specified,Unallocated,Not known,"365,260",,No
264,04/05/2020,,Morocco,Public,Middle East & North Africa,Not specified,Not specified,Not specified,Unallocated,Not known,"365,260",,No
265,04/05/2020,,South Africa,Public,Sub-Saharan Africa,Not specified,Not specified,Not specified,Unallocated,Yes,"528,687",,No
267,04/05/2020,,Canada,Public,North America,Not specified,Multilateral,Global,Unallocated,Yes,"10,650,000",,No
268,04/05/2020,,Germany,Public,Europe,Not specified,Not specified,Not specified,Unallocated,Not known,"21,833,362",,No
269,04/05/2020,,France,Public,Europe,Not specified,Not specified,Not specified,Unallocated,Yes,"56,000,000",,No
270,04/05/2020,,France,Public,Europe,Not specified,Not specified,Not specified,Unallocated,Yes,"229,250,305",,No
272,27/04/2020,,Alwaleed Philanthropies,Private,Middle East & North Africa,Bill & Melinda Gates Foundation,Other,North America,Surveillance and control,Not known,"5,000,000",,No
273,11/06/2020,,Sweden,Public,Europe,WHO,Multilateral,Global,WHO Strategic preparedness and response plan,Yes,"43,000,000",,No
274,11/06/2020,,Sweden,Public,Europe,WHO,Multilateral,Sub-Saharan Africa,WHO Strategic preparedness and response plan,Yes,"16,000,000",,No
275,04/06/2020,12/05/2021,Canada,Public,North America,GAVI,Multilateral,Global,ACT-Accelerator Vaccines,Yes,"25,000,000",Gavi figures include the pro-rata share of unallocated AMC-PCV funds,No
276,04/06/2020,12/05/2021,Norway,Public,Europe,GAVI,Multilateral,Global,ACT-Accelerator Vaccines,Yes,"6,250,000",Gavi figures include the pro-rata share of unallocated AMC-PCV funds,No
277,04/06/2020,12/05/2021,Mastercard,Private,Europe,GAVI,Multilateral,Global,ACT-Accelerator Vaccines,Yes,"1,800,000",,No
278,04/06/2020,12/05/2021,Reed Hastings and Patty Quillin,Private,North America,GAVI,Multilateral,Global,ACT-Accelerator Vaccines,Yes,"30,000,000",,No
279,04/06/2020,12/05/2021,United Kingdom,Public,Europe,GAVI,Multilateral,Global,ACT-Accelerator Vaccines,Yes,"60,600,000",Gavi figures include the pro-rata share of unallocated AMC-PCV funds,No
280,04/05/2020,,European Commission,Multilateral,Europe,Multiple recipients,Not specified,Not specified,Unallocated,Yes,"271,890,000",,Yes
281,27/06/2020,11/12/2020,Luxembourg,Public,Europe,Therapeutics Accelerator,Multilateral,Global,ACT-Accelerator Therapeutics,Yes,"968,500",,No
282,27/06/2020,,Bangladesh,Public,Central and south Asia,Not specified,Not specified,Not specified,Unallocated,Yes,"2,923,851",,No
284,27/06/2020,,Qatar,Public,Middle East & North Africa,WHO,Multilateral,Global,WHO Strategic preparedness and response plan,Yes,"10,000,000",,No
285,27/06/2020,,Belgium,Public,Europe,WHO,Multilateral,Global,WHO Strategic preparedness and response plan,Yes,"4,499,227",,No
286,27/06/2020,12/05/2021,Germany,Public,Europe,Global Fund,Multilateral,Global,ACT-Accelerator Health systems,Yes,"168,000,000",We would like to bring attention on funds contributed to the Global Fund. These are pooled under the Global Fund COVID-19 Response Mechanism and then redistributed to the work of the ACT Accelerator pillars based on country demand.,No
287,27/06/2020,,Canada,Public,North America,CEPI,Multilateral,Global,ACT-Accelerator Vaccines,Yes,"14,637,400",,No
288,27/06/2020,,Canada,Public,North America,Not specified,Not specified,Not specified,Unallocated,Yes,"15,142,000",,No
289,27/06/2020,,Netherlands,Public,Europe,Not specified,Not specified,Not specified,Unallocated,Yes,"28,116,978",,No
290,27/06/2020,,Sweden,Public,Europe,WHO,Multilateral,Global,WHO Strategic preparedness and response plan,Yes,"51,735,240",,No
291,27/06/2020,12/05/2021,Norway,Public,Europe,GAVI,Multilateral,Global,ACT-Accelerator Vaccines,Yes,"18,685,123",,No
292,27/06/2020,,Rockefeller Foundation,Private,North America,Not specified,Not specified,Not specified,R&D,Yes,"50,000,000",,No
294,27/06/2020,,Anonymous donor,Other,Not specified,WHO,Multilateral,Global,WHO Strategic preparedness and response plan,Yes,"10,000,000",,No
295,30/03/2020,12/01/2021,Multiple donors,Other,Not specified,PAHO,Multilateral,Central and southern America,WHO Strategic preparedness and response plan,Yes,"263,121,526",,No
296,,03/07/2020,African Development Bank,Private,Sub-Saharan Africa,WHO,Multilateral,Global,WHO Strategic preparedness and response plan,Yes,"34,191,115",,No
297,03/07/2020,03/07/2020,Cote d'Ivoire,Public,Sub-Saharan Africa,WHO,Multilateral,Global,WHO Strategic preparedness and response plan,Yes,"439,351",,No
300,03/07/2020,23/10/2020,Guinea,Public,Sub-Saharan Africa,WHO,Multilateral,Global,WHO Strategic preparedness and response plan,Yes,"1,794,462",,No
301,,03/07/2020,Iceland,Public,Europe,WHO,Multilateral,Global,WHO Strategic preparedness and response plan,Yes,"204,290",,No
302,,03/07/2020,Thailand,Public,East and southeast Asia,WHO,Multilateral,Global,WHO Strategic preparedness and response plan,Yes,"50,000",,No
303,,03/07/2020,United Nations Population Fund (UNFPA),Multilateral,North America,WHO,Multilateral,Global,WHO Strategic preparedness and response plan,Yes,"6,571,445",,No
304,,03/07/2020,UNICEF,Multilateral,Global,WHO,Multilateral,Global,WHO Strategic preparedness and response plan,Yes,"3,008,047",,No
305,,21/09/2020,World Bank/PAF,Multilateral,North America,WHO,Multilateral,Global,WHO Strategic preparedness and response plan,Yes,"35,962,670",,No
307,10/07/2020,12/05/2021,Netherlands,Public,Europe,GAVI,Multilateral,Global,ACT-Accelerator Vaccines,Yes,"6,100,000",,No
308,10/07/2020,12/05/2021,Netherlands,Public,Europe,FIND,Multilateral,Global,ACT-Accelerator Diagnostics,Yes,"5,700,000",,No
309,04/05/2020,,European Investment Bank,Multilateral,Europe,Not specified,Not specified,Not specified,Unallocated,Yes,"63,316,751",,No
310,04/05/2020,,European Investment Bank,Multilateral,Europe,WHO,Multilateral,Global,WHO Strategic preparedness and response plan,Yes,"2,025,044,367",,Yes
312,,24/07/2020,Swedish International Development Cooperation Agency,Public,Europe,WHO,Multilateral,Global,WHO Strategic preparedness and response plan,Yes,"7,100,000",,No
313,,19/08/2020,Switzerland,Public,Europe,WHO,Multilateral,Global,WHO Strategic preparedness and response plan,Yes,"2,684,927",,No
314,,19/08/2020,Lithuania,Public,Europe,WHO,Multilateral,Global,WHO Strategic preparedness and response plan,Yes,"11,765",,No
315,,19/08/2020,Spain,Public,Europe,WHO,Multilateral,Global,WHO Strategic preparedness and response plan,Yes,"3,562,945",,No
316,,19/08/2020,UNDP/UNOSSC,Multilateral,Global,WHO,Multilateral,Global,WHO Strategic preparedness and response plan,Yes,"968,845",,No
317,28/08/2020,,Australia,Public,Oceania,GAVI,Multilateral,Global,ACT-Accelerator Vaccines,Yes,"61,325,000",,No
319,14/09/2020,14/09/2020,Islamic Development Bank,Private,Middle East & North Africa,WHO,Multilateral,Global,WHO Strategic preparedness and response plan,Yes,"31,831,789",,No
321,04/06/2020,12/05/2021,Iceland,Public,Europe,CEPI,Multilateral,Europe,ACT-Accelerator Vaccines,Yes,"1,887,500",,No
322,31/08/2020,31/08/2020,Kuwait,Public,Middle East & North Africa,CEPI,Multilateral,Europe,ACT-Accelerator Vaccines,Yes,"10,000,000",,No
323,31/08/2020,31/08/2020,Singapore,Public,East and southeast Asia,CEPI,Multilateral,Europe,ACT-Accelerator Vaccines,Yes,"210,054",,No
324,04/05/2020,,United Kingdom,Public,Europe,Not specified,Not specified,Not specified,Unallocated,Yes,"152,400,305",,No
325,25/09/2020,12/05/2021,Canada,Public,North America,GAVI,Multilateral,Global,ACT-Accelerator Vaccines,Yes,"177,500,000",,No
326,25/09/2020,12/05/2021,United Kingdom,Public,Europe,GAVI,Multilateral,Global,ACT-Accelerator Vaccines,Yes,"672,400,000","For Gavi, £250m are conditional to a matching of 1£ for every US$4 contributed by others",No
329,30/09/2020,12/05/2021,Sweden,Public,Europe,GAVI,Multilateral,Global,ACT-Accelerator Vaccines,Yes,"11,585,121",,No
330,25/09/2020,25/09/2020,Kuwait,Public,Middle East & North Africa,FIND,Multilateral,Global,ACT-Accelerator Diagnostics,Yes,"5,000,000",,No
331,25/09/2020,12/05/2021,Anonymous Swiss Foundation,Other,Not specified,GAVI,Multilateral,Global,ACT-Accelerator Vaccines,Yes,"21,800,000",,No
332,25/09/2020,25/09/2020,Italy,Public,Europe,GAVI,Multilateral,Global,ACT-Accelerator Vaccines,Yes,"24,000,000",,No
333,25/09/2020,25/09/2020,Japan,Public,East and southeast Asia,GAVI,Multilateral,Global,ACT-Accelerator Vaccines,Yes,"30,000,000",,No
334,25/09/2020,,France,Public,Europe,Unitaid,Multilateral,Global,ACT-Accelerator Therapeutics,Yes,"12,200,000",,No
336,27/06/2020,,Canada,Public,North America,Not specified,Multilateral,Global,Unallocated,Yes,"29,722,551",,No
338,04/05/2020,,Germany,Public,Europe,WHO,Multilateral,Global,ACT-Accelerator Health systems,Yes,"122,554,745","The R&D grant of €110M to WHO is applied to a range of activities under the SPRP, of which €55m support achievement of ACT-A objectives, and is thereby reducing financial gaps that would otherwise require ACT-A financing",No
340,02/10/2020,,Saudi Arabia,Public,Middle East & North Africa,WHO,Multilateral,Global,WHO Strategic preparedness and response plan,Yes,"90,000,000",,No
341,08/10/2020,,Japan,Public,East and southeast Asia,GAVI,Multilateral,Global,ACT-Accelerator Vaccines,Yes,"100,000,000",,No
342,27/06/2020,12/05/2021,FIFA,Private,Europe,Global Fund,Multilateral,Global,ACT-Accelerator Health systems,Yes,"1,500,000",We would like to bring attention on funds contributed to the Global Fund. These are pooled under the Global Fund COVID-19 Response Mechanism and then redistributed to the work of the ACT Accelerator pillars based on country demand.,No
343,23/10/2020,23/10/2020,Afganistan,Public,Central and south Asia,WHO,Multilateral,Global,WHO Strategic preparedness and response plan,Yes,"15,261,849",,No
344,23/10/2020,23/10/2020,Cameroon,Public,Sub-Saharan Africa,WHO,Multilateral,Global,WHO Strategic preparedness and response plan,Yes,"695,827",,No
345,23/10/2020,23/10/2020,Central African Republic,Public,Sub-Saharan Africa,WHO,Multilateral,Global,WHO Strategic preparedness and response plan,Yes,"2,450,000",,No
346,23/10/2020,23/10/2020,Chad,Public,Sub-Saharan Africa,WHO,Multilateral,Global,WHO Strategic preparedness and response plan,Yes,"2,145,554",,No
348,23/10/2020,23/10/2020,Gabon,Public,Sub-Saharan Africa,WHO,Multilateral,Global,WHO Strategic preparedness and response plan,Yes,"6,827,642",,No
349,23/10/2020,23/10/2020,Guinea Bissau,Public,Sub-Saharan Africa,WHO,Multilateral,Global,WHO Strategic preparedness and response plan,Yes,"11,831,789",,No
350,23/10/2020,23/10/2020,Inter-American Development Bank (IDB),Private,North America,WHO,Multilateral,Global,WHO Strategic preparedness and response plan,Yes,"500,000",,No
351,23/10/2020,23/10/2020,International Development Association,Other,North America,WHO,Multilateral,Global,WHO Strategic preparedness and response plan,Yes,"20,000,000",,No
352,23/10/2020,23/10/2020,Iran,Public,Middle East & North Africa,WHO,Multilateral,Global,WHO Strategic preparedness and response plan,Yes,"51,793,834",,No
353,23/10/2020,23/10/2020,Lebanon,Public,Middle East & North Africa,WHO,Multilateral,Global,WHO Strategic preparedness and response plan,Yes,"5,562,072",,No
354,23/10/2020,23/10/2020,Liberia,Public,Sub-Saharan Africa,WHO,Multilateral,Global,WHO Strategic preparedness and response plan,Yes,"1,073,696",,No
355,23/10/2020,23/10/2020,Madagascar,Public,Sub-Saharan Africa,WHO,Multilateral,Global,WHO Strategic preparedness and response plan,Yes,"3,700,000",,No
356,23/10/2020,23/10/2020,Sao Tome and Principe,Public,Sub-Saharan Africa,WHO,Multilateral,Global,WHO Strategic preparedness and response plan,Yes,"1,311,947",,No
357,23/10/2020,23/10/2020,Susan Thompson Buffett Foundation,Private,North America,WHO,Multilateral,Global,WHO Strategic preparedness and response plan,Yes,"15,105,294",,No
358,23/10/2020,23/10/2020,Yemen,Public,Middle East & North Africa,WHO,Multilateral,Global,WHO Strategic preparedness and response plan,Yes,"20,000,000",,No
360,20/10/2020,12/05/2021,Rockefeller Foundation,Private,North America,FIND,Multilateral,Global,ACT-Accelerator Diagnostics,Yes,"10,000,000",,No
361,12/11/2020,12/05/2021,Bill & Melinda Gates Foundation,Private,North America,GAVI,Multilateral,Global,ACT-Accelerator Vaccines,Yes,"50,000,000",,No
363,12/11/2020,12/05/2021,European Commission,Multilateral,Europe,GAVI,Multilateral,Global,ACT-Accelerator Vaccines,Yes,"122,699,665","In addition, on August 31st 2020, the EC announced, as part of a joint “Team Europe” effort with the MS and the EIB, a €400m guarantee to support the purchasing of future vaccines to the benefit of low and middle income countries.",No
364,,12/05/2021,Republic of Korea,Public,East and southeast Asia,GAVI,Multilateral,Global,ACT-Accelerator Vaccines,Yes,"10,000,000",,No
365,12/11/2020,,Spain,Public,Europe,GAVI,Multilateral,Global,ACT-Accelerator Vaccines,Yes,"61,000,000",,No
368,,12/05/2021,Denmark,Public,Europe,Global Fund,Multilateral,Global,ACT-Accelerator Health systems,Yes,"4,000,000",We would like to bring attention on funds contributed to the Global Fund. These are pooled under the Global Fund COVID-19 Response Mechanism and then redistributed to the work of the ACT Accelerator pillars based on country demand.,No
369,,12/05/2021,Sweden,Public,Europe,Global Fund,Multilateral,Global,ACT-Accelerator Health systems,Yes,"11,000,000",We would like to bring attention on funds contributed to the Global Fund. These are pooled under the Global Fund COVID-19 Response Mechanism and then redistributed to the work of the ACT Accelerator pillars based on country demand.,No
370,01/10/2020,12/05/2021,Bill & Melinda Gates Foundation,Private,North America,Therapeutics Accelerator,Multilateral,Global,ACT-Accelerator Therapeutics,Yes,"140,000,000",For manufacturing reservation mAbs,No
371,25/11/2020,12/05/2021,Colombia,Public,Central and southern America,GAVI,Multilateral,Global,ACT-Accelerator Vaccines,Yes,"500,000",,No
372,25/11/2020,12/05/2021,Gamers Without Borders,Private,North America,GAVI,Multilateral,Global,ACT-Accelerator Vaccines,Yes,"1,300,000",,No
373,25/11/2020,12/05/2021,Iceland,Public,Europe,GAVI,Multilateral,Global,ACT-Accelerator Vaccines,Yes,"1,923,373",,No
374,25/11/2020,12/05/2021,Kuwait,Public,Middle East & North Africa,GAVI,Multilateral,Global,ACT-Accelerator Vaccines,Yes,"10,000,000",,No
375,12/11/2020,12/05/2021,Monaco,Public,Europe,GAVI,Multilateral,Global,ACT-Accelerator Vaccines,Yes,"30,183",,No
376,,,Qatar,Public,Middle East & North Africa,GAVI,Multilateral,Global,ACT-Accelerator Vaccines,Yes,"10,000,000",,No
377,,12/05/2021,Bangladesh,Public,Central and south Asia,WHO,Multilateral,Global,ACT-Accelerator Vaccines,Yes,"50,000",,No
378,,12/05/2021,Kuwait,Public,Middle East & North Africa,WHO,Multilateral,Global,ACT-Accelerator,Yes,"15,000,000",,No
379,,12/05/2021,Monaco,Public,Europe,WHO,Multilateral,Global,ACT-Accelerator,Yes,"411,281",,No
380,,12/05/2021,Soccer Aid,Private,Europe,GAVI,Multilateral,Global,ACT-Accelerator Vaccines,Yes,"4,240,000",,No
381,22/10/2020,12/05/2021,Global Fund (COVID-19 Response Mechanism),Multilateral,North America,Global Fund,Multilateral,Global,ACT-Accelerator Diagnostics,Yes,"182,228,422",The allocation of contributions to Global Fund toward Diagnostics Pillar are reflected in this line,No
383,,,Republic of Korea,Public,East and southeast Asia,Unitaid,Multilateral,Global,ACT-Accelerator Diagnostics,Yes,"1,000,000",,No
384,,12/05/2021,GAVI,Multilateral,Global,GAVI,Multilateral,Global,ACT-Accelerator Vaccines,Yes,"150,000,000",Decision made at Board meeting in 29-30 September 2020 for initial funding of delivery of vaccines to AMC92 economies,No
385,,12/05/2021,Diagnostics Consortium for COVID-19,Multilateral,Global,Low- and middle-income countries,Public,Global,ACT-Accelerator Diagnostics,Yes,"470,000,000","Procurement of automated and manual molecular tests for LMICs by members (excluding the Global Fund) of the Diagnostic Consortium. Contributions from the Diagnostics Consortium for COVID-19 reflect the value of tests procured by Consortium members for LMICs.  These contributions reduce the Diagnostics Pillar funding gap. Consortium contributions are made directly to countries, not via an ACT-A agency.",No
386,,12/05/2021,Transfer Wise,Private,Europe,GAVI,Multilateral,Global,ACT-Accelerator Vaccines,Yes,"5,000,000",,No
387,,12/05/2021,France,Public,Europe,WHO,Multilateral,Global,ACT-Accelerator,Yes,"25,620,000",The €21m contribution to WHO for ACT is the 2020 instalment of the two year €50m contribution to WHO. Allocation for 2021 will be considered in the second half of 2021.,No
388,,,Panama,Public,Central and southern America,CEPI,Multilateral,Global,ACT-Accelerator Vaccines,Yes,"15,000",,No
389,,12/05/2021,Indonesia,Public,Oceania,CEPI,Multilateral,Global,ACT-Accelerator Vaccines,Yes,"1,000,000",,No
390,12/11/2020,12/05/2021,Princess Charlène of Monaco Foundation,Private,Europe,GAVI,Multilateral,Global,ACT-Accelerator Vaccines,Yes,"30,183",,No
400,27/06/2020,,Canada,Public,North America,Not specified,Multilateral,Global,Unallocated,Yes,"16,427,449",,No
401,,,Japan,Public,East and southeast Asia,ASEAN Center for Public Health Emergencies and Emerging Diseases (AC-PHEED),Multilateral,East and southeast Asia,Emergency response,Yes,"50,000,000",,No
403,14/12/2020,12/05/2021,Canada,Public,North America,FIND,Multilateral,Global,ACT-Accelerator Diagnostics,Yes,"15,000,000",,No
404,27/11/2020,01/12/2020,Norway,Public,Europe,Therapeutics Accelerator,Multilateral,Global,ACT-Accelerator Therapeutics,Yes,"6,700,000",,No
405,11/12/2020,12/05/2021,Unitaid,Multilateral,Global,Unitaid,Multilateral,Global,ACT-Accelerator Therapeutics,Yes,"20,000,000",,No
406,11/12/2020,12/05/2021,Unitaid,Multilateral,Global,Unitaid,Multilateral,Global,ACT-Accelerator Diagnostics,Yes,"15,000,000",,No
408,10/12/2020,,Thailand,Public,East and southeast Asia,WHO,Multilateral,Global,Unallocated,Yes,"100,000",,No
409,25/11/2020,12/05/2021,Malta,Public,Europe,WHO,Multilateral,Global,ACT-Accelerator Diagnostics,Yes,"57,737",,No
410,17/04/2020,12/05/2021,Denmark,Public,Europe,CEPI,Multilateral,Global,ACT-Accelerator Vaccines,Yes,"1,456,200",,No
411,04/05/2020,12/05/2021,Romania,Public,Europe,CEPI,Multilateral,Global,ACT-Accelerator Vaccines,Yes,"219,460",,No
412,14/12/2020,,Canada,Public,North America,UNICEF,Multilateral,Global,ACT-Accelerator Therapeutics,Yes,"190,900,000",,No
416,16/12/2020,17/09/2021,Canada,Public,North America,Unitaid,Multilateral,Global,ACT-Accelerator Therapeutics,Yes,"12,450,000",,No
417,27/06/2020,12/05/2021,Canada,Public,North America,Global Fund,Multilateral,Global,ACT-Accelerator Health systems,Yes,"50,700,000",,No
418,,07/12/2020,Lybia,Public,Middle East & North Africa,WHO,Multilateral,Global,WHO Strategic preparedness and response plan,Yes,"480,000",,No
419,,10/11/2020,PAHO/AMRO,Multilateral,North America,WHO,Multilateral,Global,WHO Strategic preparedness and response plan,Yes,"51,484,028",,No
420,,10/11/2020,UNFCU Foundation,Multilateral,North America,WHO,Multilateral,Global,WHO Strategic preparedness and response plan,Yes,"76,497",,No
421,09/12/2020,12/05/2021,Norway,Public,Europe,Global Fund,Multilateral,Global,ACT-Accelerator Health systems,Yes,"31,372,000",We would like to bring attention on funds contributed to the Global Fund. These are pooled under the Global Fund COVID-19 Response Mechanism and then redistributed to the work of the ACT Accelerator pillars based on country demand.,No
422,18/12/2020,12/05/2021,Denmark,Public,Europe,GAVI,Multilateral,Global,ACT-Accelerator Vaccines,Yes,"7,918,513",,No
423,18/12/2020,12/05/2021,Estonia,Public,Europe,GAVI,Multilateral,Global,ACT-Accelerator Vaccines,Yes,"85,267",,No
424,18/12/2020,12/05/2021,New Zealand,Public,Oceania,GAVI,Multilateral,Global,ACT-Accelerator Vaccines,Yes,"7,316,993",,No
425,18/12/2020,12/05/2021,Norway,Public,Europe,GAVI,Multilateral,Global,ACT-Accelerator Vaccines,Yes,"116,000,000",,No
426,18/12/2020,12/05/2021,Singapore,Public,East and southeast Asia,GAVI,Multilateral,Global,ACT-Accelerator Vaccines,Yes,"5,000,000",,No
427,13/01/2021,,Netherlands,Public,Europe,GAVI,Multilateral,Global,ACT-Accelerator Vaccines,Yes,"29,655,000",,No
428,11/01/2021,12/05/2021,Philippines,Public,East and southeast Asia,CEPI,Multilateral,Global,ACT-Accelerator Vaccines,Yes,"10,000",,No
429,18/12/2020,,Norway,Public,Europe,Unitaid,Multilateral,Global,ACT-Accelerator Therapeutics,Yes,"16,500,000",,No
430,18/12/2020,,Norway,Public,Europe,Unitaid,Multilateral,Global,ACT-Accelerator Diagnostics,Yes,"22,000,000",,No
431,10/12/2020,12/05/2021,Thailand,Public,East and southeast Asia,WHO,Multilateral,Global,ACT-Accelerator Vaccines,Yes,"100,000",,No
432,22/10/2020,12/05/2021,Global Fund (COVID-19 Response Mechanism),Multilateral,Global,Global Fund,Multilateral,Global,ACT-Accelerator Health systems,Yes,"8,844,261",The allocation of contributions to Global Fund toward Health Systems Connector are reflected in this line,No
433,18/12/2020,,Germany,Public,Europe,GAVI,Multilateral,Global,ACT-Accelerator Vaccines,Yes,"97,600,000",,No
434,14/12/2020,12/05/2021,Canada,Public,North America,GAVI,Multilateral,Global,ACT-Accelerator Vaccines,Yes,"55,500,000",,No
436,12/02/2021,12/05/2021,Norway,Public,Europe,WHO,Multilateral,Global,ACT-Accelerator Health systems,Yes,"3,394,817",,No
437,12/02/2021,,Austria,Public,Europe,GAVI,Multilateral,Global,ACT-Accelerator Vaccines,Yes,"2,919,600",,No
438,12/02/2021,,Belgium,Public,Europe,GAVI,Multilateral,Global,ACT-Accelerator Vaccines,Yes,"4,880,000",,No
439,12/02/2021,,Japan,Public,East and southeast Asia,GAVI,Multilateral,Global,ACT-Accelerator Vaccines,Yes,"70,000,000",,No
440,12/02/2021,12/05/2021,Luxembourg,Public,Europe,GAVI,Multilateral,Global,ACT-Accelerator Vaccines,Yes,"1,197,150",,No
443,12/02/2021,,Shell,Private,Europe,GAVI,Multilateral,Global,ACT-Accelerator Vaccines,Yes,"10,000,000",,No
444,12/02/2021,,Sweden,Public,Europe,GAVI,Multilateral,Global,ACT-Accelerator Vaccines,Yes,"12,000,000",,No
445,12/02/2021,12/05/2021,Thistledown Foundation,Private,North America,GAVI,Multilateral,Global,ACT-Accelerator Vaccines,Yes,"4,140,000",,No
446,19/02/2021,,United States,Public,North America,GAVI,Multilateral,Global,ACT-Accelerator Vaccines,Yes,"3,500,000,000",,No
447,19/02/2021,,United States,Public,North America,GAVI,Multilateral,Global,To be confirmed,Yes,"1,500,000,000",,No
448,19/02/2021,,Germany,Public,Europe,GAVI,Multilateral,Global,ACT-Accelerator Vaccines,Yes,"999,540,000",,No
449,19/02/2021,17/09/2021,Germany,Public,Europe,UNICEF,Multilateral,Global,ACT-Accelerator Vaccines,Yes,"99,430,000",,No
450,19/02/2021,,Germany,Public,Europe,WHO,Multilateral,Global,ACT-Accelerator Vaccines,Yes,"207,400,000",,No
451,19/02/2021,,Germany,Public,Europe,WHO,Multilateral,Global,ACT-Accelerator Vaccines,Yes,"24,400,000",,No
452,19/02/2021,,Germany,Public,Europe,Unitaid,Multilateral,Global,ACT-Accelerator Therapeutics,Yes,"24,400,000",,No
453,19/02/2021,,Germany,Public,Europe,WHO,Multilateral,Global,ACT-Accelerator Therapeutics,Yes,"12,200,000",,No
454,19/02/2021,,Germany,Public,Europe,FIND,Multilateral,Global,ACT-Accelerator Diagnostics,Yes,"61,000,000",,No
455,19/02/2021,,Germany,Public,Europe,WHO,Multilateral,Global,ACT-Accelerator Diagnostics,Yes,"18,300,000",,No
456,19/02/2021,,Germany,Public,Europe,WHO,Multilateral,Global,ACT-Accelerator Health systems,Yes,"48,800,000",,No
458,19/02/2021,,Germany,Public,Europe,Global Fund,Multilateral,Global,ACT-Accelerator Diagnostics,Yes,"122,000,000",Temporary allocation of EUR 140m pledged by Germany,No
459,19/02/2021,,Germany,Public,Europe,Global Fund,Multilateral,Global,ACT-Accelerator Health systems,Yes,"48,800,000",Temporary allocation of EUR 140m pledged by Germany,No
460,19/02/2021,,Germany,Public,Europe,WHO,Multilateral,Global,ACT-Accelerator Health systems,Yes,"6,100,000",,No
461,19/02/2021,12/05/2021,European Commission,Public,Europe,GAVI,Multilateral,Global,ACT-Accelerator Vaccines,Yes,"366,000,000",,No
462,19/02/2021,,European Investment Bank,Public,Europe,GAVI,Multilateral,Global,To be confirmed,Yes,"242,763,157",,Yes
463,19/02/2021,12/05/2021,Ireland,Public,Europe,GAVI,Multilateral,Global,ACT-Accelerator Vaccines,Yes,"4,772,000",,No
464,04/05/2020,01/02/2021,European Commission,Multilateral,Europe,Multiple recipients,Private,Europe,R&D,Yes,"211,470,000",,Yes
466,03/03/2021,,Clinton Health Access Initiative,Private,North America,WHO,Multilateral,Global,WHO Strategic preparedness and response plan,Yes,"243,761",,No
467,19/02/2021,12/05/2021,Germany,Public,Europe,CEPI,Multilateral,Global,ACT-Accelerator Vaccines,Yes,"144,793,200",,No
468,19/02/2021,,Canada,Public,North America,Pending allocation,Multilateral,Global,ACT-Accelerator,Yes,"62,250,000",Allocation among partners in progress,No
469,19/02/2021,,Japan,Public,East and southeast Asia,Unitaid,Multilateral,Global,ACT-Accelerator Therapeutics,Yes,"8,900,000",,No
470,19/02/2021,,Norway,Public,Europe,CEPI,Multilateral,Global,ACT-Accelerator Vaccines,Yes,"23,708,000",,No
472,09/03/2021,17/08/2021,Southern African Development Community Secretariat (SADC),Public,Sub-Saharan Africa,WHO,Multilateral,Global,WHO Strategic preparedness and response plan,Yes,"8,503,380",,No
473,09/03/2021,,Ukraine,Public,Europe,WHO,Multilateral,Global,WHO Strategic preparedness and response plan,Yes,"9,409,214",,No
474,11/03/2021,,United States,Public,North America,Global Fund,Multilateral,Global,To be confirmed,Yes,"800,000,000",,No
475,24/03/2021,,Wellcome Trust,Private,Europe,Pending allocation,Not specified,Global,To be confirmed,Yes,"100,000,000",,No
476,,23/03/2021,Gates Philanthropy Partners,Private,North America,Therapeutics Accelerator,Multilateral,Global,ACT-Accelerator Therapeutics,Yes,"100,869,500",,No
477,20/04/2021,,France,Public,Europe,WHO,Multilateral,Global,ACT-Accelerator,Yes,"25,620,000",,No
478,20/04/2021,,Japan,Public,East and southeast Asia,UNICEF,Multilateral,Global,ACT-Accelerator Vaccines,Yes,"40,900,000",,No
479,20/04/2021,12/05/2021,UNICEF National Committees,Public,Global,UNICEF,Multilateral,Global,ACT-Accelerator Vaccines,Yes,"90,000,000",,No
480,20/04/2021,12/05/2021,Portugal,Public,Europe,FIND,Multilateral,Global,ACT-Accelerator Diagnostics,Yes,"215,025",,No
481,20/04/2021,12/05/2021,Portugal,Public,Europe,Unitaid,Multilateral,Global,ACT-Accelerator,Yes,"141,825",,No
482,20/04/2021,,Gamers Without Borders,Private,North America,GAVI,Multilateral,Global,ACT-Accelerator Vaccines,Yes,"25,000,000",,No
483,20/04/2021,12/05/2021,McHugh O'Donovan Foundation,Private,North America,GAVI,Multilateral,Global,ACT-Accelerator Vaccines,Yes,"100,000",,No
484,20/04/2021,12/05/2021,Philippines,Public,East and southeast Asia,GAVI,Multilateral,Global,ACT-Accelerator Vaccines,Yes,"100,000",,No
485,20/04/2021,12/05/2021,Anonymous donors,Private,Not specified,GAVI,Multilateral,Global,ACT-Accelerator Vaccines,Yes,"2,200,000",,No
487,20/04/2021,12/05/2021,Finland,Public,Europe,GAVI,Multilateral,Global,ACT-Accelerator Vaccines,Yes,"2,440,000",,No
488,20/04/2021,,Anonymous Swiss Foundation,Private,Europe,GAVI,Multilateral,Global,ACT-Accelerator Vaccines,Yes,"16,690,000",,No
489,20/04/2021,,Asia Philanthropy Circle,Private,East and southeast Asia,GAVI,Multilateral,Global,ACT-Accelerator Vaccines,Yes,"1,500,000",,No
490,20/04/2021,,Denmark,Public,Europe,GAVI,Multilateral,Global,ACT-Accelerator Vaccines,Yes,"8,200,000",,No
491,20/04/2021,,Gates Philanthropy Partners,Private,North America,GAVI,Multilateral,Global,ACT-Accelerator Vaccines,Yes,"18,000,000",,No
492,20/04/2021,,Google,Private,North America,GAVI,Multilateral,Global,ACT-Accelerator Vaccines,Yes,"2,500,000",,No
493,20/04/2021,,Liechtenstein,Public,Europe,GAVI,Multilateral,Global,ACT-Accelerator Vaccines,Yes,"106,000",,No
494,20/04/2021,,Netherlands,Public,Europe,GAVI,Multilateral,Global,ACT-Accelerator Vaccines,Yes,"49,000,000",,No
495,20/04/2021,12/05/2021,Portugal,Public,Europe,GAVI,Multilateral,Global,ACT-Accelerator Vaccines,Yes,"700,000",,No
496,20/04/2021,,Sweden,Public,Europe,GAVI,Multilateral,Global,ACT-Accelerator Vaccines,Yes,"272,030,000",,No
497,20/04/2021,,The Visa Foundation,Private,North America,GAVI,Multilateral,Global,ACT-Accelerator Vaccines,Yes,"1,500,000",,No
498,20/04/2021,,Vaccine Forward Initiative,Private,Europe,GAVI,Multilateral,Global,ACT-Accelerator Vaccines,Yes,"229,806",,No
499,20/04/2021,,United States,Public,North America,Global Fund,Multilateral,Global,ACT-Accelerator,Yes,"2,700,000,000",$2.7b of the new USG commitment of US$ 3.5 billion to the Global Fund – The precise composition of grants under C19RM 2021 will be determined by recipient countries and reported once funding requests are approved,No
500,20/04/2021,12/05/2021,Norway,Public,Europe,Global Financing Facility,Multilateral,Global,ACT-Accelerator Health systems,Yes,"31,500,000","Part of a $35m agreement for COVID-19 EHS grants, of which 85% is funding gap reducing for ACT-A",No
501,20/04/2021,,Czech Republic,Public,Europe,UNICEF,Multilateral,Global,ACT-Accelerator Vaccines,Yes,"456,000",,No
502,20/04/2021,,Republic of Korea,Public,East and southeast Asia,UNICEF,Multilateral,Global,ACT-Accelerator,Yes,"750,000",,No
503,20/04/2021,,New Zealand,Public,Oceania,UNICEF,Multilateral,Global,ACT-Accelerator Vaccines,Yes,"2,739,000",,No
504,20/04/2021,,New Zealand,Public,Oceania,UNICEF,Multilateral,Global,ACT-Accelerator Health systems,Yes,"744,000",,No
505,11/05/2021,,Japan,Public,East and southeast Asia,UNICEF,Multilateral,Global,ACT-Accelerator Vaccines,Yes,"39,000,000",,No
506,11/05/2021,,Netherlands,Public,Europe,Global Fund,Multilateral,Global,ACT-Accelerator,Yes,"14,640,000",,No
507,11/05/2021,12/05/2021,United Kingdom,Public,Europe,CEPI,Multilateral,Global,ACT-Accelerator Vaccines,Yes,"22,266,240",,No
508,11/05/2021,12/05/2021,Canada,Public,North America,CEPI,Multilateral,Global,ACT-Accelerator Vaccines,Yes,"23,483,100",,No
509,11/05/2021,,Analog Devices Foundation,Private,North America,GAVI,Multilateral,Global,ACT-Accelerator Vaccines,Yes,"2,500,000",,No
511,11/05/2021,,Cisco,Private,North America,GAVI,Multilateral,Global,ACT-Accelerator Vaccines,Yes,"5,000,000",,No
512,11/05/2021,,Croatia,Public,Europe,GAVI,Multilateral,Global,ACT-Accelerator Vaccines,Yes,"1,000,000",,No
513,11/05/2021,,Mastercard,Private,North America,GAVI,Multilateral,Global,ACT-Accelerator Vaccines,Yes,"31,000,000",,No
514,11/05/2021,,Procter & Gamble,Private,North America,GAVI,Multilateral,Global,ACT-Accelerator Vaccines,Yes,"5,000,000",,No
515,11/05/2021,,Canada,Public,North America,Pending allocation,Not specified,Not specified,ACT-Accelerator,Yes,"128,650,000",,No
516,11/05/2021,,Contributions < $1m (combined),Private,Not specified,GAVI,Multilateral,Global,ACT-Accelerator Vaccines,Yes,"5,859,369",,No
517,21/05/2021,,Italy,Public,Europe,GAVI,Multilateral,Global,ACT-Accelerator Vaccines,Yes,"366,000,000",,No
518,,17/08/2021,African Development Bank,Private,Sub-Saharan Africa,WHO,Multilateral,Global,WHO Strategic preparedness and response plan,Yes,"11,137,880",,No
519,,17/08/2021,Australia,Public,Oceania,WHO,Multilateral,Global,WHO Strategic preparedness and response plan,Yes,"5,990,764",,No
520,,18/05/2021,Belgium,Public,Europe,WHO,Multilateral,Global,WHO Strategic preparedness and response plan,Yes,"4,694,836",,No
521,,17/08/2021,Bill & Melinda Gates Foundation,Private,Europe,WHO,Multilateral,Global,WHO Strategic preparedness and response plan,Yes,"5,438,163",,No
522,,18/05/2021,Canada,Public,North America,WHO,Multilateral,Global,WHO Strategic preparedness and response plan,Yes,"122,821,250",,No
524,,18/05/2021,COVID-19 Solidarity Response Fund,Private,North America,WHO,Multilateral,Global,WHO Strategic preparedness and response plan,Yes,"45,210,318",,No
525,,18/05/2021,Democratic Republic of the Congo (African Development Bank Group),Other,Sub-Saharan Africa,WHO,Multilateral,Global,WHO Strategic preparedness and response plan,Yes,"1,285,398",,No
526,,18/05/2021,East African Community (African Development Bank),Other,Sub-Saharan Africa,WHO,Multilateral,Global,WHO Strategic preparedness and response plan,Yes,"8,518,534",,No
527,,18/05/2021,Egypt,Public,Middle East & North Africa,WHO,Multilateral,Global,WHO Strategic preparedness and response plan,Yes,"356,830",,No
528,,17/08/2021,European Commission,Public,Europe,WHO,Multilateral,Global,WHO Strategic preparedness and response plan,Yes,"111,647,812",,No
529,,18/05/2021,Foundation for Innovative New Diagnostics (FIND),Multilateral,Global,WHO,Multilateral,Global,WHO Strategic preparedness and response plan,Yes,"360,352",,No
530,,18/05/2021,GAVI,Multilateral,Global,WHO,Multilateral,Global,WHO Strategic preparedness and response plan,Yes,"35,432,305",,No
531,,17/08/2021,Germany,Public,Europe,WHO,Multilateral,Global,WHO Strategic preparedness and response plan,Yes,"379,081,381",,No
533,,18/05/2021,International Organization for Migration (IOM),Other,Global,WHO,Multilateral,Global,WHO Strategic preparedness and response plan,Yes,"752,105",,No
534,,18/05/2021,Ireland,Public,Global,WHO,Multilateral,Global,WHO Strategic preparedness and response plan,Yes,"936,454",,No
535,,18/05/2021,Islamic Development Bank,Private,Middle East & North Africa,WHO,Multilateral,Global,WHO Strategic preparedness and response plan,Yes,"1,344,633",,No
536,,18/05/2021,Israel,Public,Middle East & North Africa,WHO,Multilateral,Global,WHO Strategic preparedness and response plan,Yes,"43,267",,No
537,,17/08/2021,Italy,Public,Europe,WHO,Multilateral,Global,WHO Strategic preparedness and response plan,Yes,"2,865,957",,No
538,,18/05/2021,Japan,Public,East and southeast Asia,WHO,Multilateral,Global,WHO Strategic preparedness and response plan,Yes,"10,431,256",,No
539,,18/05/2021,Kingdom of Saudi Arabia (King Salman Humanitarian Aid & Relief Center),Private,Middle East & North Africa,WHO,Multilateral,Global,WHO Strategic preparedness and response plan,Yes,"13,000,000",,No
540,,18/05/2021,Kuwait,Public,Middle East & North Africa,WHO,Multilateral,Global,WHO Strategic preparedness and response plan,Yes,"15,000,000",,No
541,,18/05/2021,Lesotho,Public,Sub-Saharan Africa,WHO,Multilateral,Global,WHO Strategic preparedness and response plan,Yes,"162,912",,No
542,,18/05/2021,Mali (World Bank_REDISSE Project),Other,Sub-Saharan Africa,WHO,Multilateral,Global,WHO Strategic preparedness and response plan,Yes,"1,106,717",,No
543,,18/05/2021,Malta,Public,Europe,WHO,Multilateral,Global,WHO Strategic preparedness and response plan,Yes,"59,737",,No
544,,18/05/2021,Mauritania,Public,Sub-Saharan Africa,WHO,Multilateral,Global,WHO Strategic preparedness and response plan,Yes,"933,169",,No
546,,18/05/2021,National Philanthropic Trust (NPT),Public,North America,WHO,Multilateral,Global,WHO Strategic preparedness and response plan,Yes,"5,176,212",,No
547,,18/05/2021,Netherlands,Public,Europe,WHO,Multilateral,Global,WHO Strategic preparedness and response plan,Yes,"1,610,906",,No
548,,17/08/2021,Norway,Public,Europe,WHO,Multilateral,Global,WHO Strategic preparedness and response plan,Yes,"12,163,478",,No
549,,17/08/2021,PAHO/AMRO,Multilateral,North America,WHO,Multilateral,Global,WHO Strategic preparedness and response plan,Yes,"59,234,095",,No
550,,18/05/2021,Portugal,Public,Europe,WHO,Multilateral,Global,WHO Strategic preparedness and response plan,Yes,"261,588",,No
551,,18/05/2021,Republic of Korea,Public,East and southeast Asia,WHO,Multilateral,Global,WHO Strategic preparedness and response plan,Yes,"1,520,000",,No
552,,18/05/2021,Rockefeller Foundation,Private,North America,WHO,Multilateral,Global,WHO Strategic preparedness and response plan,Yes,"2,475,248",,No
553,,18/05/2021,Sao Tome and Principe (Asian Development Bank),Other,Sub-Saharan Africa,WHO,Multilateral,Global,WHO Strategic preparedness and response plan,Yes,"705,685",,No
554,,18/05/2021,Sao Tome and Principe (World Bank),Other,Sub-Saharan Africa,WHO,Multilateral,Global,WHO Strategic preparedness and response plan,Yes,"1,311,947",,No
555,,18/05/2021,Secretariat of the Pacific Community,Public,Oceania,WHO,Multilateral,Global,WHO Strategic preparedness and response plan,Yes,"500,000",,No
557,,17/08/2021,Spain,Public,Europe,WHO,Multilateral,Global,WHO Strategic preparedness and response plan,Yes,"7,489,325",,No
558,,18/05/2021,Susan Thompson Buffett Foundation,Private,North America,WHO,Multilateral,Global,WHO Strategic preparedness and response plan,Yes,"5,000,000",,No
559,,18/05/2021,Sweden,Private,Europe,WHO,Multilateral,Global,WHO Strategic preparedness and response plan,Yes,"593,250",,No
560,,18/05/2021,Switzerland,Public,Europe,WHO,Multilateral,Global,WHO Strategic preparedness and response plan,Yes,"2,100,198",,No
561,,18/05/2021,Thailand,Public,East and southeast Asia,WHO,Multilateral,Global,WHO Strategic preparedness and response plan,Yes,"100,000",,No
562,,18/05/2021,United Kingdom,Public,Europe,WHO,Multilateral,Global,WHO Strategic preparedness and response plan,Yes,"781,664",,No
563,,18/05/2021,United Nations Agencies (Miscellaneous),Multilateral,Global,WHO,Multilateral,Global,WHO Strategic preparedness and response plan,Yes,"139,697",,No
564,,17/08/2021,UN CERF,Multilateral,Global,WHO,Multilateral,Global,WHO Strategic preparedness and response plan,Yes,"10,491,092",,No
565,,18/05/2021,UNICEF,Multilateral,Global,WHO,Multilateral,Global,WHO Strategic preparedness and response plan,Yes,"557,042",,No
567,,18/05/2021,UNDP,Multilateral,Global,WHO,Multilateral,Global,WHO Strategic preparedness and response plan,Yes,"14,639,956",,No
568,,18/05/2021,UNDP Multi-Partner Trust Fund (MPTF),Multilateral,Global,WHO,Multilateral,Global,WHO Strategic preparedness and response plan,Yes,"2,197,923",,No
569,,18/05/2021,UNOCHA,Multilateral,Global,WHO,Multilateral,Global,WHO Strategic preparedness and response plan,Yes,"5,099,541",,No
570,,18/05/2021,United Nations Population Fund (UNFPA),Multilateral,Global,WHO,Multilateral,Global,WHO Strategic preparedness and response plan,Yes,"511,400",,No
571,,17/08/2021,United States,Public,North America,WHO,Multilateral,Global,WHO Strategic preparedness and response plan,Yes,"27,129,303",,No
572,,18/05/2021,Vital Strategies,Private,North America,WHO,Multilateral,Global,WHO Strategic preparedness and response plan,Yes,"1,251,380",,No
573,,,Canada,Public,North America,WHO,Multilateral,Global,ACT-Accelerator Health systems,Yes,"83,000,000",,No
574,,,United Kingdom,Public,Europe,WHO,Multilateral,Global,ACT-Accelerator Vaccines,Yes,"230,103",,No
575,,,Bill & Melinda Gates Foundation,Private,North America,WHO,Multilateral,Global,ACT-Accelerator,Yes,"1,640,000",,No
576,,,Canada,Public,North America,WHO,Multilateral,Global,ACT-Accelerator Vaccines,Yes,"39,848,734",,No
577,21/05/2021,17/09/2021,Italy,Public,Europe,CEPI,Multilateral,Global,ACT-Accelerator Vaccines,Yes,"6,096,950",,No
578,02/06/2021,,Japan,Public,East and southeast Asia,GAVI,Multilateral,Global,ACT-Accelerator Vaccines,Yes,"800,000,000",,No
579,02/06/2021,,European Investment Bank,Public,Europe,GAVI,Multilateral,Global,To be confirmed,Yes,"363,537,000",,Yes
580,02/06/2021,,Australia,Public,Oceania,GAVI,Multilateral,Global,ACT-Accelerator Vaccines,Yes,"38,670,000",,No
581,02/06/2021,,Austria,Public,Europe,GAVI,Multilateral,Global,ACT-Accelerator Vaccines,Yes,"3,170,000",,No
582,02/06/2021,,Canada,Public,North America,GAVI,Multilateral,Global,ACT-Accelerator Vaccines,Yes,"182,090,000",,No
583,02/06/2021,,Estonia,Public,Europe,GAVI,Multilateral,Global,ACT-Accelerator Vaccines,Yes,"90,000",,No
584,02/06/2021,,Finland,Public,Europe,GAVI,Multilateral,Global,ACT-Accelerator Vaccines,Yes,"12,200,000",,No
585,02/06/2021,,France,Public,Europe,GAVI,Multilateral,Global,ACT-Accelerator Vaccines,Yes,"122,000,000",,No
586,02/06/2021,,Iceland,Public,Europe,GAVI,Multilateral,Global,ACT-Accelerator Vaccines,Yes,"4,150,000",,No
587,02/06/2021,,Kuwait,Public,Middle East & North Africa,GAVI,Multilateral,Global,ACT-Accelerator Vaccines,Yes,"40,000,000",,No
588,02/06/2021,,Liechtenstein,Public,Europe,GAVI,Multilateral,Global,ACT-Accelerator Vaccines,Yes,"110,000",,No
589,02/06/2021,,Luxembourg,Public,Europe,GAVI,Multilateral,Global,ACT-Accelerator Vaccines,Yes,"1,220,000",,No
590,02/06/2021,,Malta,Public,Europe,GAVI,Multilateral,Global,ACT-Accelerator Vaccines,Yes,"50,000",,No
591,02/06/2021,,Mauritius,Public,Central and south Asia,GAVI,Multilateral,Global,ACT-Accelerator Vaccines,Yes,"3,000",,No
592,02/06/2021,,Mexico,Public,North America,GAVI,Multilateral,Global,ACT-Accelerator Vaccines,Yes,"250,000",,No
593,02/06/2021,,Oman,Public,Middle East & North Africa,GAVI,Multilateral,Global,ACT-Accelerator Vaccines,Yes,"1,000,000",,No
594,02/06/2021,,Poland,Public,Europe,GAVI,Multilateral,Global,ACT-Accelerator Vaccines,Yes,"910,000",,No
596,02/06/2021,,Spain,Public,Europe,GAVI,Multilateral,Global,ACT-Accelerator Vaccines,Yes,"61,000,000",,No
597,02/06/2021,,Switzerland,Public,Europe,GAVI,Multilateral,Global,ACT-Accelerator Vaccines,Yes,"139,110,000",,No
598,02/06/2021,,Viet Nam,Public,East and southeast Asia,GAVI,Multilateral,Global,ACT-Accelerator Vaccines,Yes,"500,000",,No
600,02/06/2021,,Bill & Melinda Gates Foundation,Private,North America,GAVI,Multilateral,Global,ACT-Accelerator Vaccines,Yes,"50,000,000",,No
602,02/06/2021,,Twilio,Private,North America,GAVI,Multilateral,Global,ACT-Accelerator Vaccines,Yes,"10,000,000",,No
603,02/06/2021,,WHO Foundation-Go Give One Campaign,Private,Global,GAVI,Multilateral,Global,ACT-Accelerator Vaccines,Yes,"6,000,000",,No
604,02/06/2021,,Visa Foundation,Private,North America,GAVI,Multilateral,Global,ACT-Accelerator Vaccines,Yes,"3,000,000",,No
605,02/06/2021,,Google,Private,North America,GAVI,Multilateral,Global,ACT-Accelerator Vaccines,Yes,"2,500,000",,No
606,02/06/2021,,UBS Optimus Foundation,Private,Europe,GAVI,Multilateral,Global,ACT-Accelerator Vaccines,Yes,"1,500,000",,No
610,02/06/2021,,Vaccine Forward Initiative,Private,Europe,GAVI,Multilateral,Global,ACT-Accelerator Vaccines,Yes,"1,442,108",,No
612,02/06/2021,,Republic of Korea,Public,East and southeast Asia,GAVI,Multilateral,Global,ACT-Accelerator Vaccines,Yes,"100,000,000",,No
613,02/06/2021,,Anonymous Swiss Foundation,Private,Europe,GAVI,Multilateral,Global,ACT-Accelerator Vaccines,Yes,"1,990,000",,No
614,02/06/2021,,Basque Government,Public,Europe,GAVI,Multilateral,Global,ACT-Accelerator Vaccines,Yes,"610,000",,No
615,02/06/2021,,Government of Catalonia,Public,Europe,GAVI,Multilateral,Global,ACT-Accelerator Vaccines,Yes,"240,000",,No
616,30/06/2021,,United States,Public,North America,UNICEF,Multilateral,Global,ACT-Accelerator Vaccines,Yes,"14,350,000",,No
617,30/06/2021,,Australia,Public,Oceania,UNICEF,Multilateral,Global,ACT-Accelerator Vaccines,Yes,"15,500,000",,No
618,30/06/2021,,Australia,Public,Oceania,UNICEF,Multilateral,Global,ACT-Accelerator Diagnostics,Yes,"3,900,000",,No
619,30/06/2021,,Denmark,Public,Europe,UNICEF,Multilateral,Global,ACT-Accelerator Health systems,Yes,"3,300,000",,No
620,30/06/2021,,Germany,Public,Europe,FIND,Multilateral,Global,ACT-Accelerator Diagnostics,Yes,"24,400,000",,No
621,30/06/2021,,Switzerland,Public,Europe,Pending allocation,Other,Global,ACT-Accelerator,Yes,"152,191,790",,No
622,09/07/2021,,Australia,Public,Oceania,WHO,Multilateral,Global,ACT-Accelerator Vaccines,Yes,"1,302,848",,No
623,09/07/2021,,Avast Foundation,Private,North America,CEPI,Multilateral,Global,ACT-Accelerator Vaccines,Yes,"7,999,959",,No
624,09/07/2021,17/09/2021,Bill & Melinda Gates Foundation,Private,North America,CEPI,Multilateral,Global,ACT-Accelerator Vaccines,Yes,"19,999,978",,No
625,09/07/2021,17/09/2021,Fidelity Charitable gift funds,Private,North America,CEPI,Multilateral,Global,ACT-Accelerator Vaccines,Yes,"1,489,806",,No
626,09/07/2021,17/09/2021,Goldman Sachs Gives,Private,North America,CEPI,Multilateral,Global,ACT-Accelerator Vaccines,Yes,"1,629,961",,No
627,09/07/2021,,Nestle,Private,Europe,CEPI,Multilateral,Global,ACT-Accelerator Vaccines,Yes,"1,041,992",,No
628,09/07/2021,,Philippines,Public,East and southeast Asia,GAVI,Multilateral,Global,ACT-Accelerator Vaccines,Yes,"1,000,000",,No
629,09/07/2021,,Sumitomo Mitsui Banking Cooperation,Private,East and southeast Asia,CEPI,Multilateral,Global,ACT-Accelerator Vaccines,Yes,"1,141,683",,No
630,09/07/2021,,Switzerland,Public,Europe,FIND,Multilateral,Global,ACT-Accelerator Diagnostics,Yes,"16,950,000",,No
631,09/07/2021,,Wellcome Trust,Private,Europe,CEPI,Multilateral,Global,ACT-Accelerator Vaccines,Yes,"25,000,000",,No
632,09/07/2021,17/09/2021,Contributions < $1m (combined),Private,Not specified,CEPI,Multilateral,Global,ACT-Accelerator Vaccines,Yes,"3,227,110",,No
633,23/07/2021,,Switzerland,Public,Europe,Therapeutics Accelerator,Multilateral,Global,ACT-Accelerator Therapeutics,Yes,"7,600,000",,No
634,23/07/2021,,Switzerland,Public,Europe,UNICEF,Multilateral,Global,ACT-Accelerator Vaccines,Yes,"6,780,000",,No
635,23/07/2021,,New Zealand,Public,Oceania,UNICEF,Multilateral,Global,ACT-Accelerator Vaccines,Yes,"3,572,530",,No
636,23/07/2021,,UNICEF National Committees,Public,Global,UNICEF,Multilateral,Global,ACT-Accelerator Therapeutics,Yes,"1,575,000",,No
637,23/07/2021,,UNICEF National Committees,Public,Global,UNICEF,Multilateral,Global,ACT-Accelerator Diagnostics,Yes,"2,575,000",,No
638,23/07/2021,,UNICEF National Committees,Public,Global,UNICEF,Multilateral,Global,ACT-Accelerator Health systems,Yes,"9,100,000",,No
639,06/08/2021,03/09/2021,China,Public,East and southeast Asia,GAVI,Multilateral,Global,ACT-Accelerator Vaccines,Yes,"100,000,000",,No
640,,17/08/2021,African Reinsurance Corporation,Private,Sub-Saharan Africa,WHO,Multilateral,Global,WHO Strategic preparedness and response plan,Yes,"250,000",,No
641,,17/08/2021,China Medical Board,Private,East and southeast Asia,WHO,Multilateral,Global,WHO Strategic preparedness and response plan,Yes,"148,500",,No
642,,17/08/2021,Comoros,Public,Sub-Saharan Africa,WHO,Multilateral,Global,WHO Strategic preparedness and response plan,Yes,"1,356,625",,No
643,,17/08/2021,Denmark,Public,Europe,WHO,Multilateral,Global,WHO Strategic preparedness and response plan,Yes,"15,797,803",,No
644,,17/08/2021,France,Public,Europe,WHO,Multilateral,Global,WHO Strategic preparedness and response plan,Yes,"44,150,050",,No
645,,17/08/2021,International Development Association,Other,Global,WHO,Multilateral,Global,WHO Strategic preparedness and response plan,Yes,"6,700,000",,No
646,,17/08/2021,Isle of Man,Public,Europe,WHO,Multilateral,Global,WHO Strategic preparedness and response plan,Yes,"1,118,881",,No
647,,17/08/2021,Monaco,Public,Europe,WHO,Multilateral,Global,WHO Strategic preparedness and response plan,Yes,"411,281",,No
648,,17/08/2021,New Zealand,Public,Oceania,WHO,Multilateral,Global,WHO Strategic preparedness and response plan,Yes,"1,391,794",,No
649,,17/08/2021,Philippines,Public,East and southeast Asia,WHO,Multilateral,Global,WHO Strategic preparedness and response plan,Yes,"1,459,153",,No
650,,17/08/2021,Slovakia,Public,Europe,WHO,Multilateral,Global,WHO Strategic preparedness and response plan,Yes,"178,359",,No
651,,17/08/2021,Task Force for Global Health (TFGH),Private,Global,WHO,Multilateral,Global,WHO Strategic preparedness and response plan,Yes,"247,525",,No
652,,17/08/2021,Veolia Environment Foundation,Private,Europe,WHO,Multilateral,Global,WHO Strategic preparedness and response plan,Yes,"112,591",,No
653,03/09/2021,17/09/2021,Portugal,Public,Europe,CEPI,Multilateral,Global,ACT-Accelerator Vaccines,Yes,"352,450",,No
654,03/09/2021,,Switzerland,Public,Europe,WHO,Multilateral,Global,ACT-Accelerator,Yes,"10,900,000",,No
655,03/09/2021,,Canada,Public,North America,FIND,Multilateral,Global,ACT-Accelerator Diagnostics,Yes,"12,450,000",,No
656,03/09/2021,,Japan,Public,East and southeast Asia,UNICEF,Multilateral,Global,ACT-Accelerator Vaccines,Yes,"29,604,211",,No
657,03/09/2021,,Republic of Korea,Public,East and southeast Asia,GAVI,Multilateral,Global,ACT-Accelerator Vaccines,Yes,"100,000,000",,No
658,17/09/2021,,France,Public,Europe,Pending allocation,Not specified,Global,ACT-Accelerator,Yes,"180,653,485",,No
659,17/09/2021,,France,Public,Europe,Unitaid,Multilateral,Global,ACT-Accelerator Therapeutics,Yes,"36,600,000",,No
660,17/09/2021,,Slovak Republic,Public,Europe,WHO,Multilateral,Global,ACT-Accelerator,Yes,"178,359",,No
661,17/09/2021,,UNDP,Multilateral,Global,WHO,Multilateral,Global,ACT-Accelerator Vaccines,Yes,"7,524,306",,No
662,17/09/2021,,Kuwait,Public,Middle East & North Africa,WHO,Multilateral,Global,ACT-Accelerator Vaccines,Yes,"1,000,000",,No
663,17/09/2021,,Norway,Public,Europe,WHO,Multilateral,Global,ACT-Accelerator,Yes,"2,348,245",,No
664,17/09/2021,,Italy,Public,Europe,WHO,Multilateral,Global,ACT-Accelerator,Yes,"6,100,000",,No
665,17/09/2021,17/09/2021,Germany,Public,Europe,UNICEF,Multilateral,Global,ACT-Accelerator Vaccines,Yes,"120,162,195",,No
666,17/09/2021,,Seadream Family Foundation,Private,North America,GAVI,Multilateral,Global,ACT-Accelerator Vaccines,Yes,"1,000,000",,No
667,17/09/2021,17/09/2021,WHO flexible funding,Multilateral,Global,Not specified,Not specified,Global,ACT-Accelerator Therapeutics,Yes,"7,217,160",,No
668,25/09/2021,,LEGO Foundation,Private,Europe,UNICEF,Multilateral,Global,To be confirmed,Yes,"70,000,000",,No